Departmental Area,Entity,Payment Date,Expense type,Expense Area,Supplier Name,Payment Reference,  Invoice Distribution Amount  ,Description,Supplier Type,Expenditure Type
UK Statistics Family,Office for National Statistics,01/12/2021,Exp - Purchase Of Goods/Services - Contractors,Digital Publishing,Talent International,215786,"16,679.75",Information Management Services,SME,Programme Expenditure
UK Statistics Family,Office for National Statistics,01/12/2021,Exp - Short-Term Contract & Agency Staff - Full Cost,Recruitment ,Talent International,215786,"4,106.64",Information Management Services,SME,Programme Expenditure
UK Statistics Family,Office for National Statistics,01/12/2021,Exp - Short-Term Contract & Agency Staff - Full Cost,Data Architecture,Talent International,215786,"3,809.52",Information Management Services,SME,Programme Expenditure
UK Statistics Family,Office for National Statistics,01/12/2021,Exp - Purchase Of Goods/Services - Contractors,Tech Delivery Next Gen IT And Infrastructure,Talent International,215786,"3,000.00",Information Management Services,SME,Programme Expenditure
UK Statistics Family,Office for National Statistics,01/12/2021,Exp - Purchase Of Goods/Services - Incentive Payments,Survey Management,Banner Group Ltd,215792,"44,175.00",Stationery,SME,Programme Expenditure
UK Statistics Family,Office for National Statistics,01/12/2021,Training & Development,Learning And Capability,KPMG LLP,215795,"9,472.80",Training and Educational Services,SME,Programme Expenditure
UK Statistics Family,Office for National Statistics,01/12/2021,Exp - Purchase Of Goods/Services - Training & Development - Seminar & Conference Fees,Office Of Chief Data And Information,KPMG LLP,215795,"1,044.00",Training and Educational Services,SME,Programme Expenditure
UK Statistics Family,Office for National Statistics,01/12/2021,Exp - Purchase Of Goods/Services - Training & Development - Seminar & Conference Fees,Data Science Campus,KPMG LLP,215795,"22,320.00",Training and Educational Services,SME,Programme Expenditure
UK Statistics Family,Office for National Statistics,01/12/2021,Exp - Purchase Of Goods/Services - Contractors,Business Architecture,La International,215803,"8,603.66",Information Management Services,SME,Programme Expenditure
UK Statistics Family,Office for National Statistics,01/12/2021,Exp - Purchase Of Goods/Services - Contractors,Business Architecture,La International,215803,"3,588.30",Information Management Services,SME,Programme Expenditure
UK Statistics Family,Office for National Statistics,01/12/2021,Exp - Purchase Of Goods/Services - Contractors,Testing,La International,215803,"17,352.60",Information Management Services,SME,Programme Expenditure
UK Statistics Family,Office for National Statistics,01/12/2021,Exp - Purchase Of Goods/Services - Contractors,Testing,La International,215803,"4,281.18",Information Management Services,SME,Programme Expenditure
UK Statistics Family,Office for National Statistics,01/12/2021,Exp - Purchase Of Goods/Services - Contractors,Testing,La International,215803,"7,135.30",Information Management Services,SME,Programme Expenditure
UK Statistics Family,Office for National Statistics,01/12/2021,Exp - Purchase Of Goods/Services - Contractors,Digital Publishing,La International,215803,"7,186.80",Information Management Services,SME,Programme Expenditure
UK Statistics Family,Office for National Statistics,01/12/2021,Exp - Purchase Of Goods/Services - Contractors,Digital Publishing,La International,215803,"16,019.40",Information Management Services,SME,Programme Expenditure
UK Statistics Family,Office for National Statistics,01/12/2021,Exp - Purchase Of Goods/Services - Contractors,STRATEGY SYNTHESIS AND CO-ORDINATION,La International,215803,"2,525.52",Information Management Services,SME,Programme Expenditure
UK Statistics Family,Office for National Statistics,01/12/2021,Exp - Purchase Of Goods/Services - Contractors,Security Operations,La International,215803,"6,407.76",Information Management Services,SME,Programme Expenditure
UK Statistics Family,Office for National Statistics,01/12/2021,Exp - Purchase Of Goods/Services - Contractors,Data Architecture,La International,215803,"3,524.22",Information Management Services,SME,Programme Expenditure
UK Statistics Family,Office for National Statistics,01/12/2021,Exp - Purchase Of Goods/Services - Contractors,IT Applications,La International,215803,"2,883.48",Information Management Services,SME,Programme Expenditure
UK Statistics Family,Office for National Statistics,01/12/2021,Exp - Short-Term Contract & Agency Staff - Full Cost,Office Of Chief Data And Information,La International,215803,"1,036.80",Information Management Services,SME,Programme Expenditure
UK Statistics Family,Office for National Statistics,01/12/2021,Exp - Purchase Of Goods And Services Consultants,Consultancy Management,Deloitte,215804,"36,385.20",Consultancy,Large,Programme Expenditure
UK Statistics Family,Office for National Statistics,02/12/2021,Telecoms,IT Operations,Bt Global Services,216035,"29,114.36",Telecommunications,Large,Programme Expenditure
UK Statistics Family,Office for National Statistics,02/12/2021,Exp - Purchase Of Goods/Services - Contractors,Consultancy Management,Certes Computing Ltd,216038,"10,798.92",Information Management Services,SME,Programme Expenditure
UK Statistics Family,Office for National Statistics,02/12/2021,Exp - Purchase Of Goods/Services - Contractors,Digital Publishing,Certes Computing Ltd,216038,"14,411.26",Information Management Services,SME,Programme Expenditure
UK Statistics Family,Office for National Statistics,02/12/2021,Exp - Purchase Of Goods/Services - Contractors,Security And Information Management Saim,Certes Computing Ltd,216038,"15,404.14",Information Management Services,SME,Programme Expenditure
UK Statistics Family,Office for National Statistics,02/12/2021,Exp - Purchase Of Goods/Services - Contractors,Security Advisory,Certes Computing Ltd,216038,"35,868.24",Information Management Services,SME,Programme Expenditure
UK Statistics Family,Office for National Statistics,02/12/2021,Exp - Purchase Of Goods/Services - Contractors,Security Advisory,Certes Computing Ltd,216038,"13,738.82",Information Management Services,SME,Programme Expenditure
UK Statistics Family,Office for National Statistics,02/12/2021,Exp - Purchase Of Goods/Services - Contractors,Digital Delivery,Certes Computing Ltd,216038,"11,449.03",Information Management Services,SME,Programme Expenditure
UK Statistics Family,Office for National Statistics,02/12/2021,Exp - Purchase Of Goods/Services - Contractors,Business Architecture,Malikshaw Interim & Executive,216043,"6,246.97",Information Management Services,SME,Programme Expenditure
UK Statistics Family,Office for National Statistics,02/12/2021,Exp - Purchase Of Goods/Services - Contractors,Programme Delivery,Malikshaw Interim & Executive,216043,"14,760.00",Information Management Services,SME,Programme Expenditure
UK Statistics Family,Office for National Statistics,02/12/2021,Exp - Purchase Of Goods/Services - Contractors,CLOUD ARCHITECTURE,Malikshaw Interim & Executive,216043,"15,840.00",Information Management Services,SME,Programme Expenditure
UK Statistics Family,Office for National Statistics,02/12/2021,Exp - Purchase Of Goods And Services Consultants,Digital Publishing,Methods Business & Digital Technology Ltd,216047,"504,933.84",Information Management Services,Large,Programme Expenditure
UK Statistics Family,Office for National Statistics,02/12/2021,Exp - Purchase Of Goods/Services - Incentive Payments,Strategy And Engagement,Sodexo Motivation Solutions U.K. ltd,216049,759.91,Survey Response Incentive Vouchers,Large,Programme Expenditure
UK Statistics Family,Office for National Statistics,02/12/2021,Exp - Purchase Of Goods/Services - Incentive Payments,Survey Management,Sodexo Motivation Solutions U.K. ltd,216049,"5,377.52",Survey Response Incentive Vouchers,Large,Programme Expenditure
UK Statistics Family,Office for National Statistics,02/12/2021,Exp - Purchase Of Goods/Services - Incentive Payments,Survey Management,Sodexo Motivation Solutions U.K. ltd,216049,"21,094.99",Survey Response Incentive Vouchers,Large,Programme Expenditure
UK Statistics Family,Office for National Statistics,02/12/2021,Exp - Purchase Of Goods/Services - Incentive Payments,Survey Management,Sodexo Motivation Solutions U.K. ltd,216049,"4,090.70",Survey Response Incentive Vouchers,Large,Programme Expenditure
UK Statistics Family,Office for National Statistics,02/12/2021,Exp - Purchase Of Goods/Services - Incentive Payments,Survey Management,Sodexo Motivation Solutions U.K. ltd,216049,108.56,Survey Response Incentive Vouchers,Large,Programme Expenditure
UK Statistics Family,Office for National Statistics,02/12/2021,Exp - Purchase Of Goods/Services - Incentive Payments,Survey Management,Sodexo Motivation Solutions U.K. ltd,216049,"28,042.76",Survey Response Incentive Vouchers,Large,Programme Expenditure
UK Statistics Family,Office for National Statistics,02/12/2021,Exp - Purchase Of Goods/Services - Incentive Payments,Social Survey Transformation Newport,Sodexo Motivation Solutions U.K. ltd,216049,"27,756.57",Survey Response Incentive Vouchers,Large,Programme Expenditure
UK Statistics Family,Office for National Statistics,02/12/2021,Exp - Purchase Of Goods/Services - Contractors,Digital Publishing,SmartSourcing Ltd,216050,"14,384.64",Information Management Services,SME,Programme Expenditure
UK Statistics Family,Office for National Statistics,02/12/2021,Exp - Short-Term Contract & Agency Staff - Full Cost,Business Architecture Transformation And Statistical Strategy,SmartSourcing Ltd,216050,"17,259.29",Information Management Services,SME,Programme Expenditure
UK Statistics Family,Office for National Statistics,02/12/2021,Exp - Short-Term Contract & Agency Staff - Full Cost,Learning And Capability,SmartSourcing Ltd,216050,"5,061.60",Information Management Services,SME,Programme Expenditure
UK Statistics Family,Office for National Statistics,02/12/2021,Exp - Short-Term Contract & Agency Staff - Full Cost,Data Architecture,SmartSourcing Ltd,216050,"2,197.80",Information Management Services,SME,Programme Expenditure
UK Statistics Family,Office for National Statistics,02/12/2021,Exp - Short-Term Contract & Agency Staff - Full Cost,Data Architecture,SmartSourcing Ltd,216050,732.6,Information Management Services,SME,Programme Expenditure
UK Statistics Family,Office for National Statistics,02/12/2021,Exp - Purchase Of Goods/Services - Contractors,Data Architecture,SmartSourcing Ltd,216050,"4,364.16",Information Management Services,SME,Programme Expenditure
UK Statistics Family,Office for National Statistics,02/12/2021,Exp - Purchase Of Goods/Services - Contractors,CDIO UNGP,SmartSourcing Ltd,216050,"3,746.16",Information Management Services,SME,Programme Expenditure
UK Statistics Family,Office for National Statistics,02/12/2021,Exp - Purchase Of Goods/Services - Contractors,IT Operations,SmartSourcing Ltd,216050,"14,384.64",Information Management Services,SME,Programme Expenditure
UK Statistics Family,Office for National Statistics,02/12/2021,Exp - Purchase Of Goods/Services - Contractors,Data Science Campus,SmartSourcing Ltd,216050,"12,138.48",Information Management Services,SME,Programme Expenditure
UK Statistics Family,Office for National Statistics,02/12/2021,Exp - Purchase Of Goods/Services - Contractors,Data As A Service,SmartSourcing Ltd,216050,"14,384.64",Information Management Services,SME,Programme Expenditure
UK Statistics Family,Office for National Statistics,02/12/2021,Exp - Purchase Of Goods/Services - IT Contractual Services,Digital Delivery,Armakuni Ltd,216052,"26,400.00",Information Management Services,SME,Programme Expenditure
UK Statistics Family,Office for National Statistics,03/12/2021,Exp - Short-Term Contract & Agency Staff - Full Cost,Stakeholder Engagement And Comms,Concept Information Technology Ltd T/A Concept Resourcing,216057,"9,563.77",Information Management Services,Large,Programme Expenditure
UK Statistics Family,Office for National Statistics,03/12/2021,Exp - Purchase Of Goods/Services - Contractors,Business Architecture,Concept Information Technology Ltd T/A Concept Resourcing,216057,"14,330.88",Information Management Services,Large,Programme Expenditure
UK Statistics Family,Office for National Statistics,03/12/2021,Exp - Short-Term Contract & Agency Staff - Full Cost,Covid Infection Survey,Concept Information Technology Ltd T/A Concept Resourcing,216057,"4,590.43",Information Management Services,Large,Programme Expenditure
UK Statistics Family,Office for National Statistics,03/12/2021,Exp - Short-Term Contract & Agency Staff - Full Cost,Covid Infection Survey,Concept Information Technology Ltd T/A Concept Resourcing,216057,"9,918.64",Information Management Services,Large,Programme Expenditure
UK Statistics Family,Office for National Statistics,03/12/2021,Exp - Short-Term Contract & Agency Staff - Full Cost,Covid Infection Survey,Concept Information Technology Ltd T/A Concept Resourcing,216057,"7,907.79",Information Management Services,Large,Programme Expenditure
UK Statistics Family,Office for National Statistics,03/12/2021,Exp - Short-Term Contract & Agency Staff - Full Cost,Covid Infection Survey,Concept Information Technology Ltd T/A Concept Resourcing,216057,"4,229.84",Information Management Services,Large,Programme Expenditure
UK Statistics Family,Office for National Statistics,03/12/2021,Exp - Short-Term Contract & Agency Staff - Full Cost,Strategy And Engagement,Concept Information Technology Ltd T/A Concept Resourcing,216057,"4,065.20",Information Management Services,Large,Programme Expenditure
UK Statistics Family,Office for National Statistics,03/12/2021,Exp - Short-Term Contract & Agency Staff - Full Cost,Business Architecture Transformation And Statistical Strategy,Concept Information Technology Ltd T/A Concept Resourcing,216057,"4,410.73",Information Management Services,Large,Programme Expenditure
UK Statistics Family,Office for National Statistics,03/12/2021,Exp - Short-Term Contract & Agency Staff - Full Cost,Business Architecture Transformation And Statistical Strategy,Concept Information Technology Ltd T/A Concept Resourcing,216057,"12,890.88",Information Management Services,Large,Programme Expenditure
UK Statistics Family,Office for National Statistics,03/12/2021,Exp - Purchase Of Goods And Services Consultants,Business Architecture Transformation And Statistical Strategy,Concept Information Technology Ltd T/A Concept Resourcing,216057,"13,224.00",Information Management Services,Large,Programme Expenditure
UK Statistics Family,Office for National Statistics,03/12/2021,Exp - Short-Term Contract & Agency Staff - Full Cost,Ask Business Services,Concept Information Technology Ltd T/A Concept Resourcing,216057,"2,792.78",Information Management Services,Large,Programme Expenditure
UK Statistics Family,Office for National Statistics,03/12/2021,Exp - Short-Term Contract & Agency Staff - Full Cost,Data Architecture,Concept Information Technology Ltd T/A Concept Resourcing,216057,"5,748.91",Information Management Services,Large,Programme Expenditure
UK Statistics Family,Office for National Statistics,03/12/2021,Exp - Purchase Of Goods/Services - Contractors,CLOUD ARCHITECTURE,Concept Information Technology Ltd T/A Concept Resourcing,216057,"16,200.00",Information Management Services,Large,Programme Expenditure
UK Statistics Family,Office for National Statistics,03/12/2021,Exp - Purchase Of Goods/Services - Contractors,Social Survey Transformation Titchfield,Concept Information Technology Ltd T/A Concept Resourcing,216057,"10,205.28",Information Management Services,Large,Programme Expenditure
UK Statistics Family,Office for National Statistics,03/12/2021,Exp - Short-Term Contract & Agency Staff - Full Cost,Prices Division,Concept Information Technology Ltd T/A Concept Resourcing,216057,"2,254.06",Information Management Services,Large,Programme Expenditure
UK Statistics Family,Office for National Statistics,03/12/2021,Exp - Short-Term Contract & Agency Staff - Full Cost,Corporations,Concept Information Technology Ltd T/A Concept Resourcing,216057,"2,352.31",Information Management Services,Large,Programme Expenditure
UK Statistics Family,Office for National Statistics,03/12/2021,Exp - Short-Term Contract & Agency Staff - Full Cost,Labour Market,Concept Information Technology Ltd T/A Concept Resourcing,216057,"1,864.48",Information Management Services,Large,Programme Expenditure
UK Statistics Family,Office for National Statistics,03/12/2021,Exp - Purchase Of Goods/Services - Contractors,Testing,Certes Computing Ltd,216059,"22,660.78",Information Management Services,SME,Programme Expenditure
UK Statistics Family,Office for National Statistics,03/12/2021,Exp - Purchase Of Goods/Services - Contractors,Data Architecture,Certes Computing Ltd,216059,"14,398.56",Information Management Services,SME,Programme Expenditure
UK Statistics Family,Office for National Statistics,03/12/2021,Exp - Purchase Of Goods/Services - Contractors,ANALYTICAL ENGAGEMENT AND IMPACT,La International,216060,"3,450.00",Information Management Services,SME,Programme Expenditure
UK Statistics Family,Office for National Statistics,03/12/2021,Exp - Purchase Of Goods/Services - Contractors,Data Architecture,La International,216060,"9,611.64",Information Management Services,SME,Programme Expenditure
UK Statistics Family,Office for National Statistics,03/12/2021,Exp - Purchase Of Goods/Services - Contractors,Data Architecture,La International,216060,"12,843.54",Information Management Services,SME,Programme Expenditure
UK Statistics Family,Office for National Statistics,03/12/2021,Exp - Purchase Of Goods/Services - Contractors,Testing,Malikshaw Interim & Executive,216061,"14,280.00",Information Management Services,SME,Programme Expenditure
UK Statistics Family,Office for National Statistics,03/12/2021,Exp - Purchase Of Goods/Services - Contractors,ANALYTICAL ENGAGEMENT AND IMPACT,Malikshaw Interim & Executive,216061,"15,480.00",Information Management Services,SME,Programme Expenditure
UK Statistics Family,Office for National Statistics,03/12/2021,Surveys,Prices Division,Kantar UK Ltd,216066,"207,757.00",Statistical Services,Large,Programme Expenditure
UK Statistics Family,Office for National Statistics,03/12/2021,Exp - Purchase Of Goods/Services - Contractors,Business Architecture,Talent International,216067,"20,573.70",Information Management Services,SME,Programme Expenditure
UK Statistics Family,Office for National Statistics,03/12/2021,Exp - Purchase Of Goods/Services - Contractors,Consultancy Management,Talent International,216067,"9,000.00",Information Management Services,SME,Programme Expenditure
UK Statistics Family,Office for National Statistics,03/12/2021,Exp - Short-Term Contract & Agency Staff - Full Cost,Covid Infection Survey,Talent International,216067,"2,669.92",Information Management Services,SME,Programme Expenditure
UK Statistics Family,Office for National Statistics,03/12/2021,Exp - Purchase Of Goods/Services - Contractors,Digital Publishing,Talent International,216067,"40,535.77",Information Management Services,SME,Programme Expenditure
UK Statistics Family,Office for National Statistics,03/12/2021,Exp - Short-Term Contract & Agency Staff - Full Cost,Strategy And Engagement,Talent International,216067,"11,321.01",Information Management Services,SME,Programme Expenditure
UK Statistics Family,Office for National Statistics,03/12/2021,Exp - Purchase Of Goods And Services Consultants,Business Architecture Transformation And Statistical Strategy,Talent International,216067,"18,720.00",Information Management Services,SME,Programme Expenditure
UK Statistics Family,Office for National Statistics,03/12/2021,Exp - Short-Term Contract & Agency Staff - Full Cost,BUSINESS STRATEGY PERFORMANCE AND PMO,Talent International,216067,"5,434.56",Information Management Services,SME,Programme Expenditure
UK Statistics Family,Office for National Statistics,03/12/2021,Exp - Short-Term Contract & Agency Staff - Full Cost,Data Architecture,Talent International,216067,"3,008.54",Information Management Services,SME,Programme Expenditure
UK Statistics Family,Office for National Statistics,03/12/2021,Exp - Short-Term Contract & Agency Staff - Full Cost,Data Architecture,Talent International,216067,"17,077.75",Information Management Services,SME,Programme Expenditure
UK Statistics Family,Office for National Statistics,03/12/2021,Exp - Purchase Of Goods/Services - Contractors,Data Architecture,Talent International,216067,"16,800.00",Information Management Services,SME,Programme Expenditure
UK Statistics Family,Office for National Statistics,03/12/2021,Exp - Purchase Of Goods/Services - Contractors,Data Architecture,Talent International,216067,"19,200.00",Information Management Services,SME,Programme Expenditure
UK Statistics Family,Office for National Statistics,03/12/2021,Exp - Purchase Of Goods/Services - Contractors,CDIO UNGP,Talent International,216067,"2,466.00",Information Management Services,SME,Programme Expenditure
UK Statistics Family,Office for National Statistics,03/12/2021,Exp - Short-Term Contract & Agency Staff - Full Cost,Social Survey Transformation Titchfield,Talent International,216067,"5,434.56",Information Management Services,SME,Programme Expenditure
UK Statistics Family,Office for National Statistics,03/12/2021,Exp - Purchase Of Goods/Services - Contractors,Business Architecture,LA FOSSE ASSOCIATES LIMITED,216069,"57,070.00",Information Management Services,Large,Programme Expenditure
UK Statistics Family,Office for National Statistics,03/12/2021,Exp - Purchase Of Goods/Services - Contractors,Business Architecture,LA FOSSE ASSOCIATES LIMITED,216069,"14,541.00",Information Management Services,Large,Programme Expenditure
UK Statistics Family,Office for National Statistics,03/12/2021,Exp - Purchase Of Goods/Services - Contractors,Business Architecture,LA FOSSE ASSOCIATES LIMITED,216069,"15,600.00",Information Management Services,Large,Programme Expenditure
UK Statistics Family,Office for National Statistics,03/12/2021,Exp - Purchase Of Goods/Services - Contractors,Business Architecture,LA FOSSE ASSOCIATES LIMITED,216069,"9,900.00",Information Management Services,Large,Programme Expenditure
UK Statistics Family,Office for National Statistics,03/12/2021,Exp - Purchase Of Goods/Services - Contractors,Testing,LA FOSSE ASSOCIATES LIMITED,216069,"14,000.00",Information Management Services,Large,Programme Expenditure
UK Statistics Family,Office for National Statistics,03/12/2021,Exp - Purchase Of Goods/Services - Contractors,Consultancy Management,LA FOSSE ASSOCIATES LIMITED,216069,"25,559.78",Information Management Services,Large,Programme Expenditure
UK Statistics Family,Office for National Statistics,03/12/2021,Exp - Purchase Of Goods/Services - Contractors,Digital Publishing,LA FOSSE ASSOCIATES LIMITED,216069,"24,060.00",Information Management Services,Large,Programme Expenditure
UK Statistics Family,Office for National Statistics,03/12/2021,Exp - Purchase Of Goods/Services - Contractors,BUSINESS STRATEGY PERFORMANCE AND PMO,LA FOSSE ASSOCIATES LIMITED,216069,"29,640.00",Information Management Services,Large,Programme Expenditure
UK Statistics Family,Office for National Statistics,03/12/2021,Exp - Purchase Of Goods/Services - Contractors,Strategy And Architecture,LA FOSSE ASSOCIATES LIMITED,216069,"17,850.00",Information Management Services,Large,Programme Expenditure
UK Statistics Family,Office for National Statistics,03/12/2021,Exp - Purchase Of Goods/Services - Contractors,Digital Delivery,LA FOSSE ASSOCIATES LIMITED,216069,"13,680.00",Information Management Services,Large,Programme Expenditure
UK Statistics Family,Office for National Statistics,06/12/2021,Exp - Short-Term Contract & Agency Staff - Full Cost,2023 CENSUS DATA TRANSFORMATION,Talent International,216193,"4,322.78",Information Management Services,SME,Programme Expenditure
UK Statistics Family,Office for National Statistics,06/12/2021,Exp - Purchase Of Goods/Services - Contractors,CLOUD ARCHITECTURE,Talent International,216193,"14,820.00",Information Management Services,SME,Programme Expenditure
UK Statistics Family,Office for National Statistics,06/12/2021,Exp - Purchase Of Goods/Services - Contractors,Strategy And Architecture,Talent International,216193,"19,380.00",Information Management Services,SME,Programme Expenditure
UK Statistics Family,Office for National Statistics,06/12/2021,Exp - Purchase Of Goods/Services - Contractors,Tech Delivery Data As A Platform,Talent International,216193,"13,650.00",Information Management Services,SME,Programme Expenditure
UK Statistics Family,Office for National Statistics,06/12/2021,Exp - Purchase Of Goods/Services - Contractors,Digital Delivery,Talent International,216193,"13,657.20",Information Management Services,SME,Programme Expenditure
UK Statistics Family,Office for National Statistics,06/12/2021,Exp - Purchase Of Goods/Services - Contractors,WIDER SURVEILLANCE STUDIES,LA FOSSE ASSOCIATES LIMITED,216194,"14,400.00",Information Management Services,Large,Programme Expenditure
UK Statistics Family,Office for National Statistics,06/12/2021,Exp - Purchase Of Goods/Services - Contractors,CLOUD ARCHITECTURE,LA FOSSE ASSOCIATES LIMITED,216194,"14,400.00",Information Management Services,Large,Programme Expenditure
UK Statistics Family,Office for National Statistics,06/12/2021,Exp - Purchase Of Goods/Services - Contractors,Tech Delivery Legacy Sp,LA FOSSE ASSOCIATES LIMITED,216194,"18,000.00",Information Management Services,Large,Programme Expenditure
UK Statistics Family,Office for National Statistics,06/12/2021,Exp - Purchase Of Goods/Services - Contractors,Strategy And Architecture,Certes Computing Ltd,216208,"12,905.62",Information Management Services,SME,Programme Expenditure
UK Statistics Family,Office for National Statistics,06/12/2021,Exp - Purchase Of Goods/Services - Contractors,Strategy And Architecture,Certes Computing Ltd,216208,"16,653.12",Information Management Services,SME,Programme Expenditure
UK Statistics Family,Office for National Statistics,06/12/2021,Exp - Purchase Of Goods/Services - Contractors,Digital Delivery,Certes Computing Ltd,216208,"48,101.71",Information Management Services,SME,Programme Expenditure
UK Statistics Family,Office for National Statistics,06/12/2021,Exp - Purchase Of Goods/Services - Contractors,Digital Delivery,Certes Computing Ltd,216208,"14,398.56",Information Management Services,SME,Programme Expenditure
UK Statistics Family,Office for National Statistics,06/12/2021,Exp - Purchase Of Goods/Services - Contractors,Data As A Service,Certes Computing Ltd,216208,"17,421.60",Information Management Services,SME,Programme Expenditure
UK Statistics Family,Office for National Statistics,06/12/2021,Exp - Purchase Of Goods/Services - Contractors,Digital Publishing,La International,216209,"6,407.76",Information Management Services,SME,Programme Expenditure
UK Statistics Family,Office for National Statistics,06/12/2021,Exp - Purchase Of Goods/Services - Contractors,CLOUD ARCHITECTURE,La International,216209,"8,330.04",Information Management Services,SME,Programme Expenditure
UK Statistics Family,Office for National Statistics,06/12/2021,Exp - Purchase Of Goods/Services - Contractors,Tech Delivery Legacy Sp,La International,216209,"12,321.60",Information Management Services,SME,Programme Expenditure
UK Statistics Family,Office for National Statistics,06/12/2021,Exp - Purchase Of Goods/Services - Contractors,Tech Delivery Legacy Sp,La International,216209,"7,048.44",Information Management Services,SME,Programme Expenditure
UK Statistics Family,Office for National Statistics,06/12/2021,Exp - Purchase Of Goods/Services - Contractors,Tech Delivery Data As A Platform,La International,216209,"10,764.90",Information Management Services,SME,Programme Expenditure
UK Statistics Family,Office for National Statistics,06/12/2021,Exp - Purchase Of Goods/Services - Contractors,IT Applications,La International,216209,"2,883.48",Information Management Services,SME,Programme Expenditure
UK Statistics Family,Office for National Statistics,07/12/2021,Software Licences At Cost - Additions,CLOUD ARCHITECTURE,Phoenix Software Ltd,216306,"39,551.06",Software Licenses,SME,Programme Expenditure
UK Statistics Family,Office for National Statistics,07/12/2021,Exp - Purchase Of Goods/Services - Contractors,Business Architecture,La International,216309,"5,015.36",Information Management Services,SME,Programme Expenditure
UK Statistics Family,Office for National Statistics,07/12/2021,Exp - Purchase Of Goods/Services - Contractors,Business Architecture,La International,216309,"3,588.30",Information Management Services,SME,Programme Expenditure
UK Statistics Family,Office for National Statistics,07/12/2021,Exp - Purchase Of Goods/Services - Contractors,Testing,La International,216309,"8,596.20",Information Management Services,SME,Programme Expenditure
UK Statistics Family,Office for National Statistics,07/12/2021,Exp - Purchase Of Goods/Services - Contractors,Testing,La International,216309,"4,281.18",Information Management Services,SME,Programme Expenditure
UK Statistics Family,Office for National Statistics,07/12/2021,Exp - Purchase Of Goods/Services - Contractors,Testing,La International,216309,"7,135.30",Information Management Services,SME,Programme Expenditure
UK Statistics Family,Office for National Statistics,07/12/2021,Exp - Purchase Of Goods/Services - Contractors,Digital Publishing,La International,216309,"6,407.76",Information Management Services,SME,Programme Expenditure
UK Statistics Family,Office for National Statistics,07/12/2021,Exp - Purchase Of Goods/Services - Contractors,STRATEGY SYNTHESIS AND CO-ORDINATION,La International,216309,"2,525.52",Information Management Services,SME,Programme Expenditure
UK Statistics Family,Office for National Statistics,07/12/2021,Exp - Purchase Of Goods/Services - Contractors,ANALYTICAL ENGAGEMENT AND IMPACT,La International,216309,"3,450.00",Information Management Services,SME,Programme Expenditure
UK Statistics Family,Office for National Statistics,07/12/2021,Exp - Purchase Of Goods/Services - Contractors,Data Architecture,La International,216309,"3,524.22",Information Management Services,SME,Programme Expenditure
UK Statistics Family,Office for National Statistics,07/12/2021,Exp - Purchase Of Goods/Services - Contractors,Data Architecture,La International,216309,"3,853.07",Information Management Services,SME,Programme Expenditure
UK Statistics Family,Office for National Statistics,07/12/2021,Exp - Purchase Of Goods/Services - Contractors,CLOUD ARCHITECTURE,La International,216309,"14,769.78",Information Management Services,SME,Programme Expenditure
UK Statistics Family,Office for National Statistics,07/12/2021,Exp - Purchase Of Goods/Services - Contractors,Tech Delivery Legacy Sp,La International,216309,"6,160.80",Information Management Services,SME,Programme Expenditure
UK Statistics Family,Office for National Statistics,07/12/2021,Exp - Purchase Of Goods/Services - Contractors,Tech Delivery Legacy Sp,La International,216309,"7,048.44",Information Management Services,SME,Programme Expenditure
UK Statistics Family,Office for National Statistics,07/12/2021,Exp - Purchase Of Goods/Services - Contractors,Tech Delivery Data As A Platform,La International,216309,"3,588.30",Information Management Services,SME,Programme Expenditure
UK Statistics Family,Office for National Statistics,07/12/2021,Exp - Purchase Of Goods/Services - Contractors,IT Applications,La International,216309,"13,936.44",Information Management Services,SME,Programme Expenditure
UK Statistics Family,Office for National Statistics,07/12/2021,Exp - Purchase Of Goods/Services - Contractors,Testing,Parity Resources Limited,216320,"7,798.76",Information Management Services,Large,Programme Expenditure
UK Statistics Family,Office for National Statistics,07/12/2021,Exp - Purchase Of Goods/Services - Contractors,Covid Infection Survey,Parity Resources Limited,216320,"2,993.80",Information Management Services,Large,Programme Expenditure
UK Statistics Family,Office for National Statistics,07/12/2021,Exp - Purchase Of Goods/Services - Contractors,Digital Publishing,Parity Resources Limited,216320,"3,550.50",Information Management Services,Large,Programme Expenditure
UK Statistics Family,Office for National Statistics,07/12/2021,Exp - Purchase Of Goods/Services - Contractors,Analysis Microdata And Engagement,Parity Resources Limited,216320,"4,485.60",Information Management Services,Large,Programme Expenditure
UK Statistics Family,Office for National Statistics,07/12/2021,Exp - Short-Term Contract & Agency Staff - Full Cost,Business Architecture Transformation And Statistical Strategy,Parity Resources Limited,216320,"4,340.58",Information Management Services,Large,Programme Expenditure
UK Statistics Family,Office for National Statistics,07/12/2021,Exp - Short-Term Contract & Agency Staff - Full Cost,Business Architecture Transformation And Statistical Strategy,Parity Resources Limited,216320,646.46,Information Management Services,Large,Programme Expenditure
UK Statistics Family,Office for National Statistics,07/12/2021,Exp - Purchase Of Goods/Services - Contractors,Security Advisory,Parity Resources Limited,216320,"17,173.44",Information Management Services,Large,Programme Expenditure
UK Statistics Family,Office for National Statistics,07/12/2021,Exp - Short-Term Contract & Agency Staff - Full Cost,Data Architecture,Parity Resources Limited,216320,"2,853.18",Information Management Services,Large,Programme Expenditure
UK Statistics Family,Office for National Statistics,07/12/2021,Exp - Purchase Of Goods/Services - Contractors,IT Applications,Parity Resources Limited,216320,"3,910.50",Information Management Services,Large,Programme Expenditure
UK Statistics Family,Office for National Statistics,07/12/2021,Exp - Purchase Of Goods/Services - Contractors,IT Operations,Parity Resources Limited,216320,"2,699.22",Information Management Services,Large,Programme Expenditure
UK Statistics Family,Office for National Statistics,07/12/2021,Exp - Purchase Of Goods/Services - Contractors,Digital Delivery,Parity Resources Limited,216320,"3,870.00",Information Management Services,Large,Programme Expenditure
UK Statistics Family,Office for National Statistics,08/12/2021,Other Goods And Services,Overseas Development,"Foreign, Commonwealth & Development Office",216328,"51,087.52",Seconded Staff Costs,Large,Programme Expenditure
UK Statistics Family,Office for National Statistics,08/12/2021,Exp - Purchase Of Goods/Services - Contractors,Portfolio Delivery,Parity Resources Limited,216330,"15,196.29",Information Management Services,Large,Programme Expenditure
UK Statistics Family,Office for National Statistics,08/12/2021,Exp - Purchase Of Goods/Services - Contractors,Commercial Services,Parity Resources Limited,216330,"48,380.40",Information Management Services,Large,Programme Expenditure
UK Statistics Family,Office for National Statistics,08/12/2021,Exp - Short-Term Contract & Agency Staff - Full Cost,Covid Infection Survey,Concept Information Technology Ltd T/A Concept Resourcing,216333,"4,104.64",Information Management Services,Large,Programme Expenditure
UK Statistics Family,Office for National Statistics,08/12/2021,Exp - Short-Term Contract & Agency Staff - Full Cost,Business Architecture Transformation And Statistical Strategy,Concept Information Technology Ltd T/A Concept Resourcing,216333,"3,088.91",Information Management Services,Large,Programme Expenditure
UK Statistics Family,Office for National Statistics,08/12/2021,Exp - Short-Term Contract & Agency Staff - Full Cost,Crime Income And Wealth,Concept Information Technology Ltd T/A Concept Resourcing,216333,"10,254.62",Information Management Services,Large,Programme Expenditure
UK Statistics Family,Office for National Statistics,08/12/2021,Exp - Purchase Of Goods/Services - IT Contractual Services,CDIO UNGP,Concept Information Technology Ltd T/A Concept Resourcing,216333,"14,400.00",Information Management Services,Large,Programme Expenditure
UK Statistics Family,Office for National Statistics,08/12/2021,Exp - Purchase Of Goods/Services - IT Contractual Services,Tech Delivery Legacy Sp,Concept Information Technology Ltd T/A Concept Resourcing,216333,"12,600.00",Information Management Services,Large,Programme Expenditure
UK Statistics Family,Office for National Statistics,08/12/2021,Exp - Short-Term Contract & Agency Staff - Full Cost,Business Outputs And Developments,Concept Information Technology Ltd T/A Concept Resourcing,216333,"3,912.62",Information Management Services,Large,Programme Expenditure
UK Statistics Family,Office for National Statistics,08/12/2021,Exp - Purchase Of Goods/Services - Contractors,Commercial Services,Certes Computing Ltd,216343,"34,585.70",Information Management Services,SME,Programme Expenditure
UK Statistics Family,Office for National Statistics,08/12/2021,Exp - Purchase Of Goods/Services - Contractors,Best Practice And Impact,Certes Computing Ltd,216343,"34,440.00",Information Management Services,SME,Programme Expenditure
UK Statistics Family,Office for National Statistics,08/12/2021,Exp - Purchase Of Goods/Services - Contractors,Data Architecture,Certes Computing Ltd,216343,"12,238.78",Information Management Services,SME,Programme Expenditure
UK Statistics Family,Office for National Statistics,08/12/2021,Exp - Purchase Of Goods/Services - Contractors,Digital Delivery,Certes Computing Ltd,216343,"42,433.20",Information Management Services,SME,Programme Expenditure
UK Statistics Family,Office for National Statistics,08/12/2021,Exp - Purchase Of Goods/Services - Contractors,Testing,La International,216344,"4,325.22",Information Management Services,SME,Programme Expenditure
UK Statistics Family,Office for National Statistics,08/12/2021,Exp - Purchase Of Goods/Services - Contractors,Testing,La International,216344,856.24,Information Management Services,SME,Programme Expenditure
UK Statistics Family,Office for National Statistics,08/12/2021,Exp - Purchase Of Goods/Services - Contractors,Digital Publishing,La International,216344,"3,593.40",Information Management Services,SME,Programme Expenditure
UK Statistics Family,Office for National Statistics,08/12/2021,Exp - Purchase Of Goods/Services - Contractors,STRATEGY SYNTHESIS AND CO-ORDINATION,La International,216344,"2,525.52",Information Management Services,SME,Programme Expenditure
UK Statistics Family,Office for National Statistics,08/12/2021,Exp - Purchase Of Goods/Services - Contractors,Security Operations,La International,216344,"6,407.76",Information Management Services,SME,Programme Expenditure
UK Statistics Family,Office for National Statistics,08/12/2021,Exp - Purchase Of Goods/Services - Contractors,Tech Delivery Legacy Sp,La International,216344,"6,160.80",Information Management Services,SME,Programme Expenditure
UK Statistics Family,Office for National Statistics,08/12/2021,Exp - Purchase Of Goods/Services - Contractors,IT Applications,La International,216344,"4,581.18",Information Management Services,SME,Programme Expenditure
UK Statistics Family,Office for National Statistics,08/12/2021,Hosting,IT Operations,CTS (Cloud Technology Solutions Ltd),216351,"32,590.69",DST Infrastructure Preparation,Large,Programme Expenditure
UK Statistics Family,Office for National Statistics,08/12/2021,Exp - Short-Term Contract & Agency Staff - Full Cost,Strategy And Engagement,Talent International,216356,"7,564.87",Information Management Services,SME,Programme Expenditure
UK Statistics Family,Office for National Statistics,08/12/2021,Exp - Short-Term Contract & Agency Staff - Full Cost,Census & Soc Methodology Dd,Talent International,216356,"5,508.00",Information Management Services,SME,Programme Expenditure
UK Statistics Family,Office for National Statistics,08/12/2021,Exp - Short-Term Contract & Agency Staff - Full Cost,Data Architecture,Talent International,216356,"7,579.89",Information Management Services,SME,Programme Expenditure
UK Statistics Family,Office for National Statistics,08/12/2021,Exp - Purchase Of Goods/Services - Contractors,Data Architecture,Talent International,216356,"9,384.00",Information Management Services,SME,Programme Expenditure
UK Statistics Family,Office for National Statistics,08/12/2021,Exp - Purchase Of Goods/Services - Contractors,CLOUD ARCHITECTURE,Talent International,216356,"15,600.00",Information Management Services,SME,Programme Expenditure
UK Statistics Family,Office for National Statistics,08/12/2021,Exp - Purchase Of Goods/Services - Contractors,Tech Delivery Legacy Sp,Talent International,216356,"34,776.00",Information Management Services,SME,Programme Expenditure
UK Statistics Family,Office for National Statistics,09/12/2021,Exp - Short-Term Contract & Agency Staff - Full Cost,Covid Infection Survey,Concept Information Technology Ltd T/A Concept Resourcing,216591,"5,212.99",Information Management Services,Large,Programme Expenditure
UK Statistics Family,Office for National Statistics,09/12/2021,Exp - Short-Term Contract & Agency Staff - Full Cost,Business Change Support,Concept Information Technology Ltd T/A Concept Resourcing,216591,"8,237.08",Information Management Services,Large,Programme Expenditure
UK Statistics Family,Office for National Statistics,09/12/2021,Exp - Short-Term Contract & Agency Staff - Full Cost,Business Change Support,Concept Information Technology Ltd T/A Concept Resourcing,216591,"4,118.54",Information Management Services,Large,Programme Expenditure
UK Statistics Family,Office for National Statistics,09/12/2021,Exp - Short-Term Contract & Agency Staff - Full Cost,Business Change Support,Concept Information Technology Ltd T/A Concept Resourcing,216591,"2,265.19",Information Management Services,Large,Programme Expenditure
UK Statistics Family,Office for National Statistics,09/12/2021,Exp - Short-Term Contract & Agency Staff - Full Cost,Business Change Support,Concept Information Technology Ltd T/A Concept Resourcing,216591,"3,136.42",Information Management Services,Large,Programme Expenditure
UK Statistics Family,Office for National Statistics,09/12/2021,Exp - Short-Term Contract & Agency Staff - Full Cost,Business Change Support,Concept Information Technology Ltd T/A Concept Resourcing,216591,"8,530.12",Information Management Services,Large,Programme Expenditure
UK Statistics Family,Office for National Statistics,09/12/2021,Exp - Short-Term Contract & Agency Staff - Full Cost,N A Coordination,Concept Information Technology Ltd T/A Concept Resourcing,216591,"5,142.61",Information Management Services,Large,Programme Expenditure
UK Statistics Family,Office for National Statistics,09/12/2021,Exp - Short-Term Contract & Agency Staff - Full Cost,International Trade And Transactions,Concept Information Technology Ltd T/A Concept Resourcing,216591,"4,118.54",Information Management Services,Large,Programme Expenditure
UK Statistics Family,Office for National Statistics,09/12/2021,Exp - Short-Term Contract & Agency Staff - Full Cost,International Trade And Transactions,Concept Information Technology Ltd T/A Concept Resourcing,216591,"2,797.34",Information Management Services,Large,Programme Expenditure
UK Statistics Family,Office for National Statistics,09/12/2021,Exp - Short-Term Contract & Agency Staff - Full Cost,International Trade And Transactions,Concept Information Technology Ltd T/A Concept Resourcing,216591,"5,774.32",Information Management Services,Large,Programme Expenditure
UK Statistics Family,Office for National Statistics,09/12/2021,Exp - Short-Term Contract & Agency Staff - Full Cost,Business Architecture Transformation And Statistical Strategy,Concept Information Technology Ltd T/A Concept Resourcing,216591,"3,923.75",Information Management Services,Large,Programme Expenditure
UK Statistics Family,Office for National Statistics,09/12/2021,Exp - Short-Term Contract & Agency Staff - Full Cost,Public Sector And Households,Concept Information Technology Ltd T/A Concept Resourcing,216591,"5,075.81",Information Management Services,Large,Programme Expenditure
UK Statistics Family,Office for National Statistics,09/12/2021,Exp - Short-Term Contract & Agency Staff - Full Cost,Public Sector And Households,Concept Information Technology Ltd T/A Concept Resourcing,216591,"8,237.08",Information Management Services,Large,Programme Expenditure
UK Statistics Family,Office for National Statistics,09/12/2021,Exp - Short-Term Contract & Agency Staff - Full Cost,Business Statistics Transformation,Concept Information Technology Ltd T/A Concept Resourcing,216591,"10,185.45",Information Management Services,Large,Programme Expenditure
UK Statistics Family,Office for National Statistics,09/12/2021,Exp - Short-Term Contract & Agency Staff - Full Cost,Prices Division,Concept Information Technology Ltd T/A Concept Resourcing,216591,"3,136.42",Information Management Services,Large,Programme Expenditure
UK Statistics Family,Office for National Statistics,09/12/2021,Exp - Short-Term Contract & Agency Staff - Full Cost,Prices Division,Concept Information Technology Ltd T/A Concept Resourcing,216591,"3,907.06",Information Management Services,Large,Programme Expenditure
UK Statistics Family,Office for National Statistics,09/12/2021,Exp - Short-Term Contract & Agency Staff - Full Cost,Labour Market,Concept Information Technology Ltd T/A Concept Resourcing,216591,"5,221.01",Information Management Services,Large,Programme Expenditure
UK Statistics Family,Office for National Statistics,09/12/2021,Exp - Purchase Of Goods/Services - IT Contractual Services,Strategy And Architecture,Ibm United Kingdom Ltd,216595,"27,667.20",Information Management Services,Large,Programme Expenditure
UK Statistics Family,Office for National Statistics,09/12/2021,Exp - Purchase Of Goods/Services - Contractors,Tech Delivery Data As A Platform,La International,216601,"8,330.04",Information Management Services,SME,Programme Expenditure
UK Statistics Family,Office for National Statistics,09/12/2021,Exp - Purchase Of Goods/Services - Contractors,Tech Delivery Data As A Platform,La International,216601,"14,353.20",Information Management Services,SME,Programme Expenditure
UK Statistics Family,Office for National Statistics,09/12/2021,Exp - Purchase Of Goods/Services - Contractors,Digital Delivery,La International,216601,"12,917.88",Information Management Services,SME,Programme Expenditure
UK Statistics Family,Office for National Statistics,09/12/2021,Exp - Purchase Of Goods/Services - Contractors,International Trade And Transactions,Talent International,216608,"7,560.00",Information Management Services,SME,Programme Expenditure
UK Statistics Family,Office for National Statistics,09/12/2021,Exp - Purchase Of Goods/Services - Contractors,CLOUD ARCHITECTURE,Talent International,216608,"14,399.76",Information Management Services,SME,Programme Expenditure
UK Statistics Family,Office for National Statistics,09/12/2021,Exp - Purchase Of Goods/Services - Contractors,PPP Operations,Talent International,216608,"4,500.00",Information Management Services,SME,Programme Expenditure
UK Statistics Family,Office for National Statistics,09/12/2021,Exp - Purchase Of Goods/Services - IT Contractual Services,IT Applications,Diegesis Limited,216609,"153,120.00",Information Management Services,Large,Programme Expenditure
UK Statistics Family,Office for National Statistics,09/12/2021,"ICT Outsourcing, Maintenance And Support",Census CCS Data Collection,Adecco UK Limited,216615,"43,672.50",Census People Services Contractual,SME,Programme Expenditure
UK Statistics Family,Office for National Statistics,09/12/2021,End User Software And Hardware,IT Operations,Boxxe Ltd,216616,"47,653.81",Software Licenses,SME,Programme Expenditure
UK Statistics Family,Office for National Statistics,10/12/2021,Exp - Short-Term Contract & Agency Staff - Full Cost,STRATEGY SYNTHESIS AND CO-ORDINATION,SmartSourcing Ltd,216742,"9,988.20",Information Management Services,SME,Programme Expenditure
UK Statistics Family,Office for National Statistics,10/12/2021,Exp - Short-Term Contract & Agency Staff - Full Cost,Data Architecture,SmartSourcing Ltd,216742,586.08,Information Management Services,SME,Programme Expenditure
UK Statistics Family,Office for National Statistics,10/12/2021,Exp - Short-Term Contract & Agency Staff - Full Cost,Data Architecture,SmartSourcing Ltd,216742,439.56,Information Management Services,SME,Programme Expenditure
UK Statistics Family,Office for National Statistics,10/12/2021,Exp - Purchase Of Goods/Services - Contractors,Tech Delivery Data As A Platform,SmartSourcing Ltd,216742,"7,200.00",Information Management Services,SME,Programme Expenditure
UK Statistics Family,Office for National Statistics,10/12/2021,Exp - Purchase Of Goods/Services - Contractors,IT Applications,SmartSourcing Ltd,216742,"1,438.46",Information Management Services,SME,Programme Expenditure
UK Statistics Family,Office for National Statistics,10/12/2021,Exp - Purchase Of Goods/Services - Contractors,IT Operations,SmartSourcing Ltd,216742,"17,980.80",Information Management Services,SME,Programme Expenditure
UK Statistics Family,Office for National Statistics,10/12/2021,Exp - Permanent UK Staff - PRP Voucher Payments,ONS Corporate Funds,Edenred (UK Group) Limited,216743,"45,050.00",Performance Reward Vouchers,Large,Programme Expenditure
UK Statistics Family,Office for National Statistics,10/12/2021,EXP - PURCHASE OF GOODS/SERVICES -  NON IT CONTRACTUAL PAYMENTS,Census CCS Data Collection,Adecco UK Limited,216746,"1,528,800.00",Census People Services Contractual,SME,Programme Expenditure
UK Statistics Family,Office for National Statistics,10/12/2021,Exp - Purchase Of Goods And Services Consultants,Population Statistics Div,NHS Digital,216747,"449,788.80",Data Linkage Services,Large,Programme Expenditure
UK Statistics Family,Office for National Statistics,10/12/2021,Exp - Purchase Of Goods/Services - IT Contractual Services,Digital Publishing,Swirrl It Ltd,216748,"71,640.00",Information Management Services,SME,Programme Expenditure
UK Statistics Family,Office for National Statistics,10/12/2021,Exp - Purchase Of Goods/Services - Contractors,Strategy And Architecture,Certes Computing Ltd,216753,"18,000.00",Information Management Services,SME,Programme Expenditure
UK Statistics Family,Office for National Statistics,10/12/2021,Exp - Purchase Of Goods/Services - Contractors,Digital Delivery,Certes Computing Ltd,216753,"15,115.20",Information Management Services,SME,Programme Expenditure
UK Statistics Family,Office for National Statistics,10/12/2021,Surveys,Crime Statistics,Kantar UK Ltd,216758,"699,440.70",Statistical Services,Large,Programme Expenditure
UK Statistics Family,Office for National Statistics,10/12/2021,Exp - Purchase Of Goods/Services - Contractors,Covid Infection Survey,Talent International,216759,"15,600.00",Information Management Services,SME,Programme Expenditure
UK Statistics Family,Office for National Statistics,10/12/2021,Exp - Short-Term Contract & Agency Staff - Full Cost,STRATEGY SYNTHESIS AND CO-ORDINATION,Talent International,216759,"16,450.56",Information Management Services,SME,Programme Expenditure
UK Statistics Family,Office for National Statistics,10/12/2021,Exp - Short-Term Contract & Agency Staff - Full Cost,STRATEGY SYNTHESIS AND CO-ORDINATION,Talent International,216759,"2,717.28",Information Management Services,SME,Programme Expenditure
UK Statistics Family,Office for National Statistics,10/12/2021,Exp - Short-Term Contract & Agency Staff - Full Cost,Data Architecture,Talent International,216759,"1,504.28",Information Management Services,SME,Programme Expenditure
UK Statistics Family,Office for National Statistics,10/12/2021,Exp - Short-Term Contract & Agency Staff - Full Cost,Data Architecture,Talent International,216759,"4,110.38",Information Management Services,SME,Programme Expenditure
UK Statistics Family,Office for National Statistics,10/12/2021,Exp - Purchase Of Goods/Services - Contractors,PPP Operations,Talent International,216759,"48,600.00",Information Management Services,SME,Programme Expenditure
UK Statistics Family,Office for National Statistics,13/12/2021,Exp - Short-Term Contract & Agency Staff - Full Cost,"SUB-NATIONAL STATISTICS AND ANALYSIS
Account	
AccountAutocompletes on TAB	",Concept Information Technology Ltd T/A Concept Resourcing,216767,"4,118.54",Information Management Services,Large,Programme Expenditure
UK Statistics Family,Office for National Statistics,13/12/2021,Exp - Purchase Of Goods/Services - Contractors,Census & Soc Methodology Dd,Concept Information Technology Ltd T/A Concept Resourcing,216767,"9,335.21",Information Management Services,Large,Programme Expenditure
UK Statistics Family,Office for National Statistics,13/12/2021,Exp - Short-Term Contract & Agency Staff - Full Cost,Prices Division,Concept Information Technology Ltd T/A Concept Resourcing,216767,"2,653.34",Information Management Services,Large,Programme Expenditure
UK Statistics Family,Office for National Statistics,13/12/2021,Exp - Short-Term Contract & Agency Staff - Full Cost,Prices Division,Concept Information Technology Ltd T/A Concept Resourcing,216767,"8,237.08",Information Management Services,Large,Programme Expenditure
UK Statistics Family,Office for National Statistics,13/12/2021,Exp - Short-Term Contract & Agency Staff - Full Cost,Prices Division,Concept Information Technology Ltd T/A Concept Resourcing,216767,"24,268.78",Information Management Services,Large,Programme Expenditure
UK Statistics Family,Office for National Statistics,13/12/2021,Exp - Purchase Of Goods/Services - Contractors,Business Architecture,La International,216775,"4,297.70",Information Management Services,SME,Programme Expenditure
UK Statistics Family,Office for National Statistics,13/12/2021,Exp - Purchase Of Goods/Services - Contractors,Business Architecture,La International,216775,"16,275.49",Information Management Services,SME,Programme Expenditure
UK Statistics Family,Office for National Statistics,13/12/2021,Exp - Purchase Of Goods/Services - Contractors,Testing,La International,216775,"18,308.49",Information Management Services,SME,Programme Expenditure
UK Statistics Family,Office for National Statistics,13/12/2021,Exp - Purchase Of Goods/Services - Contractors,Testing,La International,216775,"4,281.18",Information Management Services,SME,Programme Expenditure
UK Statistics Family,Office for National Statistics,13/12/2021,Exp - Purchase Of Goods/Services - Contractors,Testing,La International,216775,"7,135.30",Information Management Services,SME,Programme Expenditure
UK Statistics Family,Office for National Statistics,13/12/2021,Exp - Purchase Of Goods/Services - Contractors,Data Architecture,La International,216775,"11,533.86",Information Management Services,SME,Programme Expenditure
UK Statistics Family,Office for National Statistics,13/12/2021,Exp - Purchase Of Goods/Services - Contractors,Data Architecture,La International,216775,"4,281.18",Information Management Services,SME,Programme Expenditure
UK Statistics Family,Office for National Statistics,13/12/2021,Exp - Purchase Of Goods/Services - Contractors,CLOUD ARCHITECTURE,La International,216775,"3,844.62",Information Management Services,SME,Programme Expenditure
UK Statistics Family,Office for National Statistics,13/12/2021,"ICT Outsourcing, Maintenance And Support",Senior Management Team Design,Totalmobile Ltd,216777,"64,128.00",Software Licenses,SME,Programme Expenditure
UK Statistics Family,Office for National Statistics,13/12/2021,Exp - Purchase Of Goods/Services - IT Contractual Services,Digital Delivery,Methods Business & Digital Technology Ltd,216780,"67,140.00",Information Management Services,Large,Programme Expenditure
UK Statistics Family,Office for National Statistics,13/12/2021,Exp - Purchase Of Goods/Services - Contractors,Census CCS Data Collection,Adecco UK Limited,216784,"1,257,703.20",Census People Services Contractual,SME,Programme Expenditure
UK Statistics Family,Office for National Statistics,13/12/2021,EXP - PURCHASE OF GOODS/SERVICES -  NON IT CONTRACTUAL PAYMENTS,Census CCS Data Collection,Adecco UK Limited,216784,"9,696,516.00",Census People Services Contractual,SME,Programme Expenditure
UK Statistics Family,Office for National Statistics,14/12/2021,End User Software And Hardware,IT Operations,Phoenix Software Ltd,216900,"77,010.56",Software Licenses,SME,Programme Expenditure
UK Statistics Family,Office for National Statistics,14/12/2021,Exp - Purchase Of Goods/Services - Incentive Payments,Social Survey Transformation Newport,Sodexo Motivation Solutions U.K. ltd,216910,"71,541.36",Survey Response Incentive Vouchers,Large,Programme Expenditure
UK Statistics Family,Office for National Statistics,14/12/2021,Exp - Purchase Of Goods/Services - Incentive Payments,Survey Management,Sodexo Motivation Solutions U.K. ltd,216910,"1,865.25",Survey Response Incentive Vouchers,Large,Programme Expenditure
UK Statistics Family,Office for National Statistics,14/12/2021,Exp - Purchase Of Goods/Services - Incentive Payments,Social Survey Transformation Newport,Sodexo Motivation Solutions U.K. ltd,216910,828.01,Survey Response Incentive Vouchers,Large,Programme Expenditure
UK Statistics Family,Office for National Statistics,14/12/2021,Telecoms,Tech Delivery Next Gen IT And Infrastructure,Freedom Communications (UK) Ltd,216914,"1,917.85",Telecommunications,Large,Programme Expenditure
UK Statistics Family,Office for National Statistics,14/12/2021,Telecoms,IT Operations,Freedom Communications (UK) Ltd,216914,"27,484.77",Telecommunications,Large,Programme Expenditure
UK Statistics Family,Office for National Statistics,14/12/2021,Marketing & Media,Policy Secretariat,Cabinet Office,216917,"7,900.00",Recruitment Services,Large,Programme Expenditure
UK Statistics Family,Office for National Statistics,14/12/2021,Other Goods And Services,Recruitment ,Cabinet Office,216917,489.6,Security Vetting Services,Large,Programme Expenditure
UK Statistics Family,Office for National Statistics,14/12/2021,Other Goods And Services,ONS Corporate Funds,Cabinet Office,216917,"8,894.88",Recruitment Services,Large,Programme Expenditure
UK Statistics Family,Office for National Statistics,14/12/2021,Other Goods And Services,Census & Soc Methodology Dd,Cabinet Office,216917,"10,397.28",Recruitment Services,Large,Programme Expenditure
UK Statistics Family,Office for National Statistics,14/12/2021,Training & Development,Office Of Chief Data And Information,Cabinet Office,216917,170,Training and Educational Services,Large,Programme Expenditure
UK Statistics Family,Office for National Statistics,15/12/2021,Telecoms,IT Operations,Crown Hosting Data Centres Limited,216920,860,Information Management Services,SME,Programme Expenditure
UK Statistics Family,Office for National Statistics,15/12/2021,Hosting,IT Operations,Crown Hosting Data Centres Limited,216920,"65,185.35",Information Management Services,SME,Programme Expenditure
UK Statistics Family,Office for National Statistics,15/12/2021,Surveys,International Trade And Transactions,Mango Solutions,216921,"15,504.00",Information Management Services,SME,Programme Expenditure
UK Statistics Family,Office for National Statistics,15/12/2021,Surveys,International Trade And Transactions,Mango Solutions,216921,"31,416.00",Information Management Services,SME,Programme Expenditure
UK Statistics Family,Office for National Statistics,15/12/2021,Major Works Over 25K,Property Newport,Vinci Construction UK Limited,216923,"373,952.67",Facilities Mangement Services,Large,Programme Expenditure
UK Statistics Family,Office for National Statistics,15/12/2021,Major Works Over 25K,Property Titchfield,Vinci Construction UK Limited,216923,"158,697.60",Facilities Mangement Services,Large,Programme Expenditure
UK Statistics Family,Office for National Statistics,15/12/2021,FM Contract Payments,Vinci Payments,Vinci Construction UK Limited,216923,"680,903.67",Facilities Mangement Services,Large,Programme Expenditure
UK Statistics Family,Office for National Statistics,15/12/2021,"ICT Outsourcing, Maintenance And Support",Covid Infection Survey,Equiniti Limited,216928,"14,549.86",Information Management Services,Large,Programme Expenditure
UK Statistics Family,Office for National Statistics,15/12/2021,"ICT Outsourcing, Maintenance And Support",Researcher Support And Data Access ,Equiniti Limited,216928,"154,767.37",Information Management Services,Large,Programme Expenditure
UK Statistics Family,Office for National Statistics,15/12/2021,Hosting,IT Operations,Equiniti Limited,216928,"51,041.75",Information Management Services,Large,Programme Expenditure
UK Statistics Family,Office for National Statistics,15/12/2021,End User Software And Hardware,Census CCS Data Collection,Softcat,216929,"33,680.53",Software Licenses,SME,Programme Expenditure
UK Statistics Family,Office for National Statistics,15/12/2021,End User Software And Hardware,Operations,Softcat,216929,"120,688.12",Software Licenses,SME,Programme Expenditure
UK Statistics Family,Office for National Statistics,15/12/2021,End User Software And Hardware,IT Operations,Softcat,216929,"326,803.25",Software Licenses,SME,Programme Expenditure
UK Statistics Family,Office for National Statistics,15/12/2021,End User Software And Hardware,IT Operations,Softcat,216929,"16,675.20",Software Licenses,SME,Programme Expenditure
UK Statistics Family,Office for National Statistics,15/12/2021,Surveys,Social Surveys Division,Nisra,216931,"87,762.12",Statistical Services,Large,Programme Expenditure
UK Statistics Family,Office for National Statistics,15/12/2021,Exp - Purchase Of Goods/Services - Contractors,2023 CENSUS DATA TRANSFORMATION,La International,216934,"8,009.64",Information Management Services,SME,Programme Expenditure
UK Statistics Family,Office for National Statistics,15/12/2021,Exp - Purchase Of Goods/Services - Contractors,Data Architecture,La International,216934,"4,485.43",Information Management Services,SME,Programme Expenditure
UK Statistics Family,Office for National Statistics,15/12/2021,Exp - Purchase Of Goods/Services - Contractors,Strategy And Architecture,La International,216934,"14,353.20",Information Management Services,SME,Programme Expenditure
UK Statistics Family,Office for National Statistics,15/12/2021,Exp - Short-Term Contract & Agency Staff - Full Cost,Office Of Chief Data And Information,La International,216934,"2,349.00",Information Management Services,SME,Programme Expenditure
UK Statistics Family,Office for National Statistics,15/12/2021,Surveys,ECONOMIC CHANGE,Techmodal,216940,"33,540.00",Information Management Services,Large,Programme Expenditure
UK Statistics Family,Office for National Statistics,15/12/2021,Exp - Short-Term Contract & Agency Staff - Full Cost,Covid Infection Survey,Malikshaw Interim & Executive,216941,"2,673.40",Information Management Services,SME,Programme Expenditure
UK Statistics Family,Office for National Statistics,15/12/2021,Exp - Short-Term Contract & Agency Staff - Full Cost,Data Architecture,Malikshaw Interim & Executive,216941,"21,677.32",Information Management Services,SME,Programme Expenditure
UK Statistics Family,Office for National Statistics,15/12/2021,Exp - Purchase Of Goods/Services - Contractors,IT Operations,Malikshaw Interim & Executive,216941,"19,219.20",Information Management Services,SME,Programme Expenditure
UK Statistics Family,Office for National Statistics,15/12/2021,Exp - Purchase Of Goods/Services - Contractors,IT Operations,Malikshaw Interim & Executive,216941,"22,690.01",Information Management Services,SME,Programme Expenditure
UK Statistics Family,Office for National Statistics,15/12/2021,Exp - Purchase Of Goods/Services - Contractors,Data As A Service,Malikshaw Interim & Executive,216941,"17,472.00",Information Management Services,SME,Programme Expenditure
UK Statistics Family,Office for National Statistics,15/12/2021,Exp - Purchase Of Goods/Services - IT Contractual Services,2023 CENSUS DATA TRANSFORMATION,CTS (Cloud Technology Solutions Ltd),216942,"26,496.00",DST Infrastructure Preparation,Large,Programme Expenditure
UK Statistics Family,Office for National Statistics,15/12/2021,Hosting,IT Operations,CTS (Cloud Technology Solutions Ltd),216942,"120,220.44",DST Infrastructure Preparation,Large,Programme Expenditure
UK Statistics Family,Office for National Statistics,15/12/2021,Surveys,ECONOMIC CHANGE,Bureau Van Dijk Electronic Publishing,216943,"64,512.00",Training and Educational Services,SME,Programme Expenditure
UK Statistics Family,Office for National Statistics,15/12/2021,Exp - Purchase Of Goods/Services - IT Contractual Services,Digital Delivery,Methods Business & Digital Technology Ltd,216947,"42,708.00",Information Management Services,Large,Programme Expenditure
UK Statistics Family,Office for National Statistics,15/12/2021,Exp - Short-Term Contract & Agency Staff - Full Cost,Data Architecture,Talent International,216948,"2,419.03",Information Management Services,SME,Programme Expenditure
UK Statistics Family,Office for National Statistics,15/12/2021,Exp - Purchase Of Goods/Services - Contractors,IT Applications,Talent International,216948,"14,376.00",Information Management Services,SME,Programme Expenditure
UK Statistics Family,Office for National Statistics,15/12/2021,Exp - Purchase Of Goods/Services - Contractors,IT Operations,Talent International,216948,"28,800.00",Information Management Services,SME,Programme Expenditure
UK Statistics Family,Office for National Statistics,15/12/2021,Exp - Purchase Of Goods/Services - Contractors,Digital Delivery,Talent International,216948,"15,210.00",Information Management Services,SME,Programme Expenditure
UK Statistics Family,Office for National Statistics,15/12/2021,Exp - Short-Term Contract & Agency Staff - Full Cost,Public Sector And Households,Talent International,216948,"2,837.78",Information Management Services,SME,Programme Expenditure
UK Statistics Family,Office for National Statistics,15/12/2021,Exp - Purchase Of Goods/Services - Contractors,Data As A Service,Talent International,216948,"18,000.00",Information Management Services,SME,Programme Expenditure
UK Statistics Family,Office for National Statistics,15/12/2021,EXP - PURCHASE OF GOODS/SERVICES -  NON IT CONTRACTUAL PAYMENTS,Census CCS Data Collection,Banner Group Ltd,216952,"-11,379.30",Stationery,SME,Programme Expenditure
UK Statistics Family,Office for National Statistics,15/12/2021,Other Professional Services,Social Survey Transformation Newport,Banner Group Ltd,216952,"44,175.00",Stationery,SME,Programme Expenditure
UK Statistics Family,Office for National Statistics,15/12/2021,Exp - Purchase Of Goods/Services - Contractors,Policy and Design,Parity Resources Limited,216953,"7,200.00",Information Management Services,Large,Programme Expenditure
UK Statistics Family,Office for National Statistics,15/12/2021,Exp - Purchase Of Goods/Services - Contractors,Security Advisory,Parity Resources Limited,216953,"3,844.80",Information Management Services,Large,Programme Expenditure
UK Statistics Family,Office for National Statistics,15/12/2021,Exp - Purchase Of Goods/Services - Contractors,CLOUD ARCHITECTURE,Parity Resources Limited,216953,"3,430.50",Information Management Services,Large,Programme Expenditure
UK Statistics Family,Office for National Statistics,15/12/2021,Exp - Purchase Of Goods/Services - Contractors,Tech Delivery Legacy Sp,Parity Resources Limited,216953,"4,600.50",Information Management Services,Large,Programme Expenditure
UK Statistics Family,Office for National Statistics,15/12/2021,Exp - Purchase Of Goods/Services - Contractors,IT Applications,Parity Resources Limited,216953,"9,804.24",Information Management Services,Large,Programme Expenditure
UK Statistics Family,Office for National Statistics,15/12/2021,Exp - Purchase Of Goods/Services - Contractors,IT Operations,Parity Resources Limited,216953,"32,094.00",Information Management Services,Large,Programme Expenditure
UK Statistics Family,Office for National Statistics,15/12/2021,Other Goods And Services,Security Advisory,Cabinet Office,216954,"-52,777.20",Security Vetting Services,Large,Programme Expenditure
UK Statistics Family,Office for National Statistics,15/12/2021,Exp - Seconded UK Staff - Basic Salary,FAST STREAM RECHARGES - CABINET OFFICE,Cabinet Office,216954,"337,314.00",Fast Stream Programme Charges,Large,Programme Expenditure
UK Statistics Family,Office for National Statistics,15/12/2021,Other Goods And Services,WIDER SURVEILLANCE STUDIES,Family & Education / iChild,216958,"72,409.20",Consultancy,SME,Programme Expenditure
UK Statistics Family,Office for National Statistics,16/12/2021,Exp - Purchase Of Goods/Services - Contractors,Digital Publishing,La International,217254,"14,373.60",Information Management Services,SME,Programme Expenditure
UK Statistics Family,Office for National Statistics,16/12/2021,Exp - Purchase Of Goods/Services - Contractors,ANALYTICAL ENGAGEMENT AND IMPACT,La International,217254,"3,450.00",Information Management Services,SME,Programme Expenditure
UK Statistics Family,Office for National Statistics,16/12/2021,Exp - Purchase Of Goods/Services - Contractors,Data Architecture,La International,217254,"1,409.69",Information Management Services,SME,Programme Expenditure
UK Statistics Family,Office for National Statistics,16/12/2021,Exp - Purchase Of Goods/Services - Contractors,Data Architecture,La International,217254,"2,748.71",Information Management Services,SME,Programme Expenditure
UK Statistics Family,Office for National Statistics,16/12/2021,Exp - Purchase Of Goods/Services - Contractors,IT Applications,La International,217254,"3,588.30",Information Management Services,SME,Programme Expenditure
UK Statistics Family,Office for National Statistics,16/12/2021,Exp - Purchase Of Goods/Services - Contractors,Business Architecture,Parity Resources Limited,217266,"4,678.76",Information Management Services,Large,Programme Expenditure
UK Statistics Family,Office for National Statistics,16/12/2021,Exp - Purchase Of Goods/Services - Contractors,Testing,Parity Resources Limited,217266,"3,600.00",Information Management Services,Large,Programme Expenditure
UK Statistics Family,Office for National Statistics,16/12/2021,Exp - Purchase Of Goods/Services - Contractors,Covid Infection Survey,Parity Resources Limited,217266,"2,993.80",Information Management Services,Large,Programme Expenditure
UK Statistics Family,Office for National Statistics,16/12/2021,Exp - Purchase Of Goods/Services - Contractors,Policy and Design,Parity Resources Limited,217266,"2,400.00",Information Management Services,Large,Programme Expenditure
UK Statistics Family,Office for National Statistics,16/12/2021,Exp - Short-Term Contract & Agency Staff - Full Cost,Recruitment ,Parity Resources Limited,217266,"1,758.24",Information Management Services,Large,Programme Expenditure
UK Statistics Family,Office for National Statistics,16/12/2021,Exp - Purchase Of Goods/Services - Contractors,Strategy And Architecture,Parity Resources Limited,217266,"12,631.50",Information Management Services,Large,Programme Expenditure
UK Statistics Family,Office for National Statistics,16/12/2021,"ICT Outsourcing, Maintenance And Support",Digital Publishing,Storm ID Ltd,217268,"28,080.00",Information Management Services,Large,Programme Expenditure
UK Statistics Family,Office for National Statistics,17/12/2021,Accommodation & Building Management,Interview Management IPS,Heathrow Airport,217280,"29,538.74",Rental Charges,Large,Programme Expenditure
UK Statistics Family,Office for National Statistics,17/12/2021,Office Related Goods And Services,Interview Management IPS,Heathrow Airport,217280,30.26,Rental Charges,Large,Programme Expenditure
UK Statistics Family,Office for National Statistics,17/12/2021,Exp - Purchase Of Goods/Services - Contractors,BUSINESS STRATEGY PERFORMANCE AND PMO,Talent International,217284,"39,000.00",Information Management Services,SME,Programme Expenditure
UK Statistics Family,Office for National Statistics,17/12/2021,Exp - Short-Term Contract & Agency Staff - Full Cost,Data Architecture,Talent International,217284,"6,769.24",Information Management Services,SME,Programme Expenditure
UK Statistics Family,Office for National Statistics,17/12/2021,Exp - Short-Term Contract & Agency Staff - Full Cost,Data Architecture,Talent International,217284,"6,212.44",Information Management Services,SME,Programme Expenditure
UK Statistics Family,Office for National Statistics,17/12/2021,Exp - Purchase Of Goods/Services - Contractors,Data Architecture,Talent International,217284,"2,346.00",Information Management Services,SME,Programme Expenditure
UK Statistics Family,Office for National Statistics,17/12/2021,Fixtures & Fittings At Cost - Additions,Property Newport,Orange box Limited,217286,"208,828.33",Office Furniture,SME,Programme Expenditure
UK Statistics Family,Office for National Statistics,17/12/2021,Fixtures & Fittings At Cost - Additions,Property Titchfield,Orange box Limited,217286,"106,240.35",Office Furniture,SME,Programme Expenditure
UK Statistics Family,Office for National Statistics,17/12/2021,Exp - Short-Term Contract & Agency Staff - Full Cost,Recruitment ,Parity Resources Limited,217287,"1,465.20",Information Management Services,Large,Programme Expenditure
UK Statistics Family,Office for National Statistics,17/12/2021,Exp - Short-Term Contract & Agency Staff - Full Cost,Data Architecture,Parity Resources Limited,217287,732.6,Information Management Services,Large,Programme Expenditure
UK Statistics Family,Office for National Statistics,17/12/2021,Exp - Purchase Of Goods/Services - Contractors,Strategy And Architecture,Parity Resources Limited,217287,"13,531.50",Information Management Services,Large,Programme Expenditure
UK Statistics Family,Office for National Statistics,17/12/2021,Exp - Purchase Of Goods/Services - Contractors,IT Applications,Parity Resources Limited,217287,"12,150.00",Information Management Services,Large,Programme Expenditure
UK Statistics Family,Office for National Statistics,20/12/2021,Surveys,Social Surveys Division,Natcen Social Research,217490,"672,540.16",Statistical Services,Large,Programme Expenditure
UK Statistics Family,Office for National Statistics,20/12/2021,Exp - Purchase Of Goods/Services - Incentive Payments,Social Surveys Division,Natcen Social Research,217490,"12,946.54",Survey Response Incentive Vouchers,Large,Programme Expenditure
UK Statistics Family,Office for National Statistics,20/12/2021,EXP - PURCHASE OF GOODS/SERVICES - INCENTIVE REBATES,Social Surveys Division,Natcen Social Research,217490,"-97,100.00",Survey Response Incentive Vouchers,Large,Programme Expenditure
UK Statistics Family,Office for National Statistics,20/12/2021,Exp - Short-Term Contract & Agency Staff - Full Cost,International Trade And Transactions,Concept Information Technology Ltd T/A Concept Resourcing,217491,"21,988.52",Information Management Services,Large,Programme Expenditure
UK Statistics Family,Office for National Statistics,20/12/2021,Exp - Short-Term Contract & Agency Staff - Full Cost,Productivity Research And Professional Development,Concept Information Technology Ltd T/A Concept Resourcing,217491,"5,075.81",Information Management Services,Large,Programme Expenditure
UK Statistics Family,Office for National Statistics,20/12/2021,Exp - Short-Term Contract & Agency Staff - Full Cost,Productivity Research And Professional Development,Concept Information Technology Ltd T/A Concept Resourcing,217491,"3,136.42",Information Management Services,Large,Programme Expenditure
UK Statistics Family,Office for National Statistics,20/12/2021,Exp - Purchase Of Goods And Services Consultants,Productivity Research And Professional Development,Concept Information Technology Ltd T/A Concept Resourcing,217491,"6,795.60",Information Management Services,Large,Programme Expenditure
UK Statistics Family,Office for National Statistics,20/12/2021,Exp - Purchase Of Goods And Services Consultants,Productivity Research And Professional Development,Concept Information Technology Ltd T/A Concept Resourcing,217491,"4,435.67",Information Management Services,Large,Programme Expenditure
UK Statistics Family,Office for National Statistics,20/12/2021,Exp - Purchase Of Goods And Services Consultants,Productivity Research And Professional Development,Concept Information Technology Ltd T/A Concept Resourcing,217491,"5,148.18",Information Management Services,Large,Programme Expenditure
UK Statistics Family,Office for National Statistics,20/12/2021,Exp - Purchase Of Goods And Services Consultants,Productivity Research And Professional Development,Concept Information Technology Ltd T/A Concept Resourcing,217491,"2,665.96",Information Management Services,Large,Programme Expenditure
UK Statistics Family,Office for National Statistics,20/12/2021,Exp - Short-Term Contract & Agency Staff - Full Cost,Data Architecture,Concept Information Technology Ltd T/A Concept Resourcing,217491,"1,474.08",Information Management Services,Large,Programme Expenditure
UK Statistics Family,Office for National Statistics,20/12/2021,Exp - Short-Term Contract & Agency Staff - Full Cost,Data Architecture,Concept Information Technology Ltd T/A Concept Resourcing,217491,"2,948.16",Information Management Services,Large,Programme Expenditure
UK Statistics Family,Office for National Statistics,20/12/2021,"ICT Outsourcing, Maintenance And Support",Finance,Scc,217492,"8,965.28",Information Management Services,Large,Programme Expenditure
UK Statistics Family,Office for National Statistics,20/12/2021,Exp - Purchase Of Goods/Services - Other ICT Costs Software,Finance,Scc,217492,"154,286.88",Software Licenses,Large,Programme Expenditure
UK Statistics Family,Office for National Statistics,20/12/2021,Exp - Purchase Of Goods/Services - IT Contractual Services,Strategy And Architecture,Ibm United Kingdom Ltd,217494,"40,643.52",Information Management Services,Large,Programme Expenditure
UK Statistics Family,Office for National Statistics,20/12/2021,Exp - Purchase Of Goods And Services Consultants,2023 CENSUS DATA TRANSFORMATION,University of Salford,217497,"150,000.00",Digitisation Services,Large,Programme Expenditure
UK Statistics Family,Office for National Statistics,20/12/2021,Exp - Purchase Of Goods/Services - Contractors,Census & Soc Methodology Dd,Certes Computing Ltd,217500,"14,397.84",Information Management Services,SME,Programme Expenditure
UK Statistics Family,Office for National Statistics,20/12/2021,Exp - Purchase Of Goods/Services - Contractors,CLOUD ARCHITECTURE,Certes Computing Ltd,217500,"15,372.00",Information Management Services,SME,Programme Expenditure
UK Statistics Family,Office for National Statistics,20/12/2021,Exp - Purchase Of Goods/Services - Contractors,Tech Delivery Legacy Sp,Certes Computing Ltd,217500,"12,778.03",Information Management Services,SME,Programme Expenditure
UK Statistics Family,Office for National Statistics,20/12/2021,Exp - Purchase Of Goods/Services - Contractors,Digital Delivery,Certes Computing Ltd,217500,"16,012.56",Information Management Services,SME,Programme Expenditure
UK Statistics Family,Office for National Statistics,20/12/2021,Exp - Purchase Of Goods/Services - Contractors,Business Architecture,La International,217501,"9,506.54",Information Management Services,SME,Programme Expenditure
UK Statistics Family,Office for National Statistics,20/12/2021,Exp - Purchase Of Goods/Services - Contractors,Testing,La International,217501,"20,946.00",Information Management Services,SME,Programme Expenditure
UK Statistics Family,Office for National Statistics,20/12/2021,Exp - Purchase Of Goods/Services - Contractors,Testing,La International,217501,"4,281.18",Information Management Services,SME,Programme Expenditure
UK Statistics Family,Office for National Statistics,20/12/2021,Exp - Purchase Of Goods/Services - Contractors,Testing,La International,217501,"7,135.30",Information Management Services,SME,Programme Expenditure
UK Statistics Family,Office for National Statistics,20/12/2021,Exp - Purchase Of Goods/Services - Contractors,Digital Publishing,La International,217501,"3,593.40",Information Management Services,SME,Programme Expenditure
UK Statistics Family,Office for National Statistics,20/12/2021,Exp - Purchase Of Goods/Services - Contractors,Digital Publishing,La International,217501,"9,162.36",Information Management Services,SME,Programme Expenditure
UK Statistics Family,Office for National Statistics,20/12/2021,Exp - Purchase Of Goods/Services - Contractors,STRATEGY SYNTHESIS AND CO-ORDINATION,La International,217501,"2,525.52",Information Management Services,SME,Programme Expenditure
UK Statistics Family,Office for National Statistics,20/12/2021,Exp - Purchase Of Goods/Services - Contractors,Data Architecture,La International,217501,"14,353.20",Information Management Services,SME,Programme Expenditure
UK Statistics Family,Office for National Statistics,20/12/2021,Exp - Purchase Of Goods/Services - Contractors,CLOUD ARCHITECTURE,La International,217501,"23,836.72",Information Management Services,SME,Programme Expenditure
UK Statistics Family,Office for National Statistics,20/12/2021,Exp - Purchase Of Goods/Services - Contractors,IT Applications,La International,217501,"2,883.48",Information Management Services,SME,Programme Expenditure
UK Statistics Family,Office for National Statistics,20/12/2021,Exp - Purchase Of Goods/Services - Contractors,IT Operations,La International,217501,"7,689.24",Information Management Services,SME,Programme Expenditure
UK Statistics Family,Office for National Statistics,20/12/2021,Exp - Short-Term Contract & Agency Staff - Full Cost,Office Of Chief Data And Information,La International,217501,"2,332.80",Information Management Services,SME,Programme Expenditure
UK Statistics Family,Office for National Statistics,20/12/2021,EXP - PURCHASE OF GOODS/SERVICES -  NON IT CONTRACTUAL PAYMENTS,Data Collection Service,Leidos Innovations UK Limited,217507,"833,648.99",Questionnaire Management,Large,Programme Expenditure
UK Statistics Family,Office for National Statistics,20/12/2021,EXP - PURCHASE OF GOODS/SERVICES -  NON IT CONTRACTUAL PAYMENTS,Covid Infection Survey,HH Associates Ltd,217508,"47,198.32",Print and Post Services,SME,Programme Expenditure
UK Statistics Family,Office for National Statistics,20/12/2021,Exp - Purchase Of Goods/Services - Contractors,INTEGRATED DATA STRATEGY AND DELIVERY,Talent International,217511,"13,800.00",Information Management Services,SME,Programme Expenditure
UK Statistics Family,Office for National Statistics,20/12/2021,Exp - Purchase Of Goods/Services - Contractors,Data Architecture,Talent International,217511,"14,376.00",Information Management Services,SME,Programme Expenditure
UK Statistics Family,Office for National Statistics,20/12/2021,Exp - Purchase Of Goods/Services - Contractors,Tech Delivery Next Gen IT And Infrastructure,Talent International,217511,"6,000.00",Information Management Services,SME,Programme Expenditure
UK Statistics Family,Office for National Statistics,20/12/2021,Exp - Purchase Of Goods/Services - Contractors,Digital Delivery,Talent International,217511,"12,096.00",Information Management Services,SME,Programme Expenditure
UK Statistics Family,Office for National Statistics,20/12/2021,Exp - Short-Term Contract & Agency Staff - Full Cost,Productivity Research And Professional Development,Parity Resources Limited,217516,"3,090.24",Information Management Services,Large,Programme Expenditure
UK Statistics Family,Office for National Statistics,20/12/2021,Exp - Purchase Of Goods/Services - Contractors,Researcher Support And Data Access ,Parity Resources Limited,217516,"10,800.00",Information Management Services,Large,Programme Expenditure
UK Statistics Family,Office for National Statistics,20/12/2021,Exp - Purchase Of Goods/Services - Contractors,Security Advisory,Parity Resources Limited,217516,"2,870.78",Information Management Services,Large,Programme Expenditure
UK Statistics Family,Office for National Statistics,20/12/2021,Exp - Purchase Of Goods/Services - Contractors,Strategy And Architecture,Parity Resources Limited,217516,"8,421.00",Information Management Services,Large,Programme Expenditure
UK Statistics Family,Office for National Statistics,20/12/2021,Exp - Purchase Of Goods/Services - Contractors,IT Operations,Parity Resources Limited,217516,"7,101.00",Information Management Services,Large,Programme Expenditure
UK Statistics Family,Office for National Statistics,20/12/2021,End User Software And Hardware,IT Operations,Insight Direct,217517,"36,395.78",Information Management Services,Large,Programme Expenditure
UK Statistics Family,Office for National Statistics,20/12/2021,Accommodation & Building Management,Property Newport,Government Property Agency (GPA),217518,"3,180.00",Property Rental,Large,Programme Expenditure
UK Statistics Family,Office for National Statistics,20/12/2021,Rent Payable,Property Newport,Government Property Agency (GPA),217518,"385,434.00",Property Rental,Large,Programme Expenditure
UK Statistics Family,Office for National Statistics,20/12/2021,Accommodation & Building Management,Property Titchfield,Government Property Agency (GPA),217518,"3,180.00",Property Rental,Large,Programme Expenditure
UK Statistics Family,Office for National Statistics,20/12/2021,Rent Payable,Property Titchfield,Government Property Agency (GPA),217518,"351,015.00",Property Rental,Large,Programme Expenditure
UK Statistics Family,Office for National Statistics,20/12/2021,Accommodation & Building Management,Property Christchurch,Government Property Agency (GPA),217518,"3,180.00",Property Rental,Large,Programme Expenditure
UK Statistics Family,Office for National Statistics,20/12/2021,Rent Payable,Property Christchurch,Government Property Agency (GPA),217518,"51,975.00",Property Rental,Large,Programme Expenditure
UK Statistics Family,Office for National Statistics,20/12/2021,Fixtures & Fittings At Cost - Additions,Property Newport,Orange box Limited,217520,"209,164.71",Office Furniture,SME,Programme Expenditure
UK Statistics Family,Office for National Statistics,20/12/2021,Fixtures & Fittings At Cost - Additions,Property Titchfield,Orange box Limited,217520,"213,057.67",Office Furniture,SME,Programme Expenditure
UK Statistics Family,Office for National Statistics,21/12/2021,Print & Post,Social Survey Transformation Newport,APS Group,217533,"140,784.54",Print and Post Services,Large,Programme Expenditure
UK Statistics Family,Office for National Statistics,21/12/2021,Exp - Purchase Of Goods/Services - Contractors,Business Architecture,LA FOSSE ASSOCIATES LIMITED,217535,"14,400.00",Information Management Services,Large,Programme Expenditure
UK Statistics Family,Office for National Statistics,21/12/2021,Exp - Purchase Of Goods/Services - Contractors,Data As A Service,LA FOSSE ASSOCIATES LIMITED,217535,"14,400.00",Information Management Services,Large,Programme Expenditure
UK Statistics Family,Office for National Statistics,22/12/2021,Major Works Over 25K,Census CCS Data Collection,Paramount Office Interiors Ltd,217540,"8,053.10",Buildings Maintenance,SME,Programme Expenditure
UK Statistics Family,Office for National Statistics,22/12/2021,Major Works Over 25K,Property Services,Paramount Office Interiors Ltd,217540,"14,323.84",Buildings Maintenance,SME,Programme Expenditure
UK Statistics Family,Office for National Statistics,22/12/2021,Major Works Over 25K,Property Newport,Paramount Office Interiors Ltd,217540,"8,425.84",Buildings Maintenance,SME,Programme Expenditure
UK Statistics Family,Office for National Statistics,22/12/2021,Capital Major Works >25K,Property Titchfield,Paramount Office Interiors Ltd,217540,"2,649.32",Buildings Maintenance,SME,Programme Expenditure
UK Statistics Family,Office for National Statistics,22/12/2021,Major Works Over 25K,Property Titchfield,Paramount Office Interiors Ltd,217540,"5,629.58",Buildings Maintenance,SME,Programme Expenditure
UK Statistics Family,Office for National Statistics,22/12/2021,Print & Post,Social Survey Transformation Newport,APS Group,217542,"56,945.95",Print and Post Services,Large,Programme Expenditure
UK Statistics Family,Office for National Statistics,22/12/2021,Hospitality,Property Services,BaxterStorey,217544,"26,073.85",Catering Services,Large,Programme Expenditure
UK Statistics Family,Office for National Statistics,22/12/2021,Hosting,IT Operations,Amazon Web Services Inc,217546,"34,380.72",Information Management Services,Large,Programme Expenditure
UK Statistics Family,Office for National Statistics,22/12/2021,Exp - Purchase Of Goods/Services - Contractors,Tech Delivery Legacy Sp,LA FOSSE ASSOCIATES LIMITED,217548,"56,340.00",Information Management Services,Large,Programme Expenditure
UK Statistics Family,Office for National Statistics,24/12/2021,Hosting,IT Operations,CTS (Cloud Technology Solutions Ltd),217811,"122,551.50",DST Infrastructure Preparation,Large,Programme Expenditure
UK Statistics Family,Office for National Statistics,01/12/2021,Surveys,Covid Infection Survey,IQVIA Limited,30003121,"4,759,765.25",Statistical Services,Large,Programme Expenditure
UK Statistics Family,Office for National Statistics,01/12/2021,Exp - Purchase Of Goods/Services - Contractors,Digital Publishing,Certes Computing Ltd,30003123,"33,484.71",Information Management Services,SME,Programme Expenditure
UK Statistics Family,Office for National Statistics,01/12/2021,Exp - Purchase Of Goods/Services - Contractors,Digital Publishing,Certes Computing Ltd,30003123,"17,278.27",Information Management Services,SME,Programme Expenditure
UK Statistics Family,Office for National Statistics,01/12/2021,Exp - Purchase Of Goods/Services - Contractors,Security Advisory,Certes Computing Ltd,30003123,"13,703.54",Information Management Services,SME,Programme Expenditure
UK Statistics Family,Office for National Statistics,01/12/2021,Exp - Purchase Of Goods/Services - Contractors,Tech Delivery Data As A Platform,Certes Computing Ltd,30003123,"11,158.88",Information Management Services,SME,Programme Expenditure
UK Statistics Family,Office for National Statistics,01/12/2021,Exp - Purchase Of Goods/Services - Contractors,IT Applications,Certes Computing Ltd,30003123,"13,678.63",Information Management Services,SME,Programme Expenditure
UK Statistics Family,Office for National Statistics,01/12/2021,Exp - Purchase Of Goods/Services - Contractors,IT Operations,Certes Computing Ltd,30003123,"14,580.00",Information Management Services,SME,Programme Expenditure
UK Statistics Family,Office for National Statistics,01/12/2021,Exp - Purchase Of Goods/Services - Contractors,Digital Delivery,Certes Computing Ltd,30003123,"14,347.20",Information Management Services,SME,Programme Expenditure
UK Statistics Family,Office for National Statistics,01/12/2021,Exp - Short-Term Contract & Agency Staff - Full Cost,Business Architecture Transformation And Statistical Strategy,SmartSourcing Ltd,30003124,"7,192.32",Information Management Services,SME,Programme Expenditure
UK Statistics Family,Office for National Statistics,01/12/2021,Exp - Short-Term Contract & Agency Staff - Full Cost,Data Architecture,SmartSourcing Ltd,30003124,439.56,Information Management Services,SME,Programme Expenditure
UK Statistics Family,Office for National Statistics,01/12/2021,Exp - Purchase Of Goods/Services - Contractors,Data Architecture,SmartSourcing Ltd,30003124,"5,628.00",Information Management Services,SME,Programme Expenditure
UK Statistics Family,Office for National Statistics,01/12/2021,Exp - Purchase Of Goods/Services - Contractors,Data Architecture,SmartSourcing Ltd,30003124,"48,237.41",Information Management Services,SME,Programme Expenditure
UK Statistics Family,Office for National Statistics,01/12/2021,Exp - Purchase Of Goods/Services - Contractors,CDIO UNGP,SmartSourcing Ltd,30003124,"7,492.32",Information Management Services,SME,Programme Expenditure
UK Statistics Family,Office for National Statistics,01/12/2021,Exp - Purchase Of Goods/Services - Contractors,Tech Delivery Data As A Platform,SmartSourcing Ltd,30003124,"3,600.00",Information Management Services,SME,Programme Expenditure
UK Statistics Family,Office for National Statistics,02/12/2021,Exp - Purchase Of Goods/Services - Incentive Payments,Covid Infection Survey,Sodexo Motivation Solutions U.K. ltd,30003125,"1,823,421.11",Survey Response Incentive Vouchers,Large,Programme Expenditure
UK Statistics Family,Office for National Statistics,06/12/2021,Exp - Purchase Of Goods/Services - Incentive Payments,Covid Infection Survey,Sodexo Motivation Solutions U.K. ltd,30003129,"188,505.04",Survey Response Incentive Vouchers,Large,Programme Expenditure
UK Statistics Family,Office for National Statistics,10/12/2021,Exp - Purchase Of Goods/Services - Incentive Payments,Covid Infection Survey,Sodexo Motivation Solutions U.K. ltd,30003133,"2,685,844.55",Survey Response Incentive Vouchers,Large,Programme Expenditure
UK Statistics Family,Office for National Statistics,13/12/2021,Stationery,Lodgecard,Royal Bank of Scotland,30003139,"1,071.35",Multiple Procurement Card Purchases  - Stationery ,Large,Programme Expenditure
UK Statistics Family,Office for National Statistics,13/12/2021,Other Goods And Services,GPC,Royal Bank of Scotland,30003139,"58,594.44",Multiple Procurement Card Purchases - other goods/services  ,Large,Programme Expenditure
UK Statistics Family,Office for National Statistics,13/12/2021,Exp - Purchase Of Goods/Services - Incentive Payments,Covid Infection Survey,Sodexo Motivation Solutions U.K. ltd,30003141,"78,913.45",Survey Response Incentive Vouchers,Large,Programme Expenditure
UK Statistics Family,Office for National Statistics,16/12/2021,Exp - Purchase Of Goods/Services - Incentive Payments,Covid Infection Survey,Sodexo Motivation Solutions U.K. ltd,30003144,"2,093,746.37",Survey Response Incentive Vouchers,Large,Programme Expenditure
UK Statistics Family,Office for National Statistics,20/12/2021,Exp - Purchase Of Goods/Services - Incentive Payments,Covid Infection Survey,Sodexo Motivation Solutions U.K. ltd,30003150,"182,932.40",Survey Response Incentive Vouchers,Large,Programme Expenditure
UK Statistics Family,Office for National Statistics,20/12/2021,Surveys,Covid Infection Survey,IQVIA Limited,30003151,"21,120,000.00",Statistical Services,Large,Programme Expenditure
UK Statistics Family,Office for National Statistics,24/12/2021,Exp - Purchase Of Goods/Services - Incentive Payments,Covid Infection Survey,Sodexo Motivation Solutions U.K. ltd,30003157,"2,244,942.66",Survey Response Incentive Vouchers,Large,Programme Expenditure
UK Statistics Family,Office for National Statistics,24/12/2021,Exp - Purchase Of Goods/Services - Incentive Payments,Covid Infection Survey,Sodexo Motivation Solutions U.K. ltd,30003158,"186,014.40",Survey Response Incentive Vouchers,Large,Programme Expenditure
UK Statistics Family,Office for National Statistics,31/12/2021,Exp - Purchase Of Goods/Services - Incentive Payments,Survey Management,Banner Group Ltd,30003160,"9,615.00",Stationery,SME,Programme Expenditure
UK Statistics Family,Office for National Statistics,31/12/2021,Other Professional Services,Social Survey Transformation Newport,Banner Group Ltd,30003160,"34,560.00",Stationery,SME,Programme Expenditure
UK Statistics Family,Office for National Statistics,31/12/2021,EXP - PURCHASE OF GOODS/SERVICES -  NON IT CONTRACTUAL PAYMENTS,Census CCS Data Collection,Adecco UK Limited,30003161,"70,042.80",Census People Services Contractual,SME,Programme Expenditure
UK Statistics Family,Office for National Statistics,31/12/2021,Telecoms,IT Operations,Bt Global Services,30003162,"47,915.94",Telecommunications,Large,Programme Expenditure
UK Statistics Family,Office for National Statistics,31/12/2021,Other Goods And Services,Senior Management,Granby Marketing Services Ltd,30003163,"94,131.00",Stoarage and Distribution Services,Large,Programme Expenditure
UK Statistics Family,Office for National Statistics,31/12/2021,Other Professional Services,Social Survey Transformation Newport,Nisra,30003164,"295,200.00",Statistical Services,Large,Programme Expenditure
UK Statistics Family,Office for National Statistics,31/12/2021,Exp - Purchase Of Goods And Services Consultants,2023 CENSUS DATA TRANSFORMATION,The Sensible Code Company,30003165,"167,422.80",Consultancy,SME,Programme Expenditure
,,,,,,,"61,384,529.42",,,
